Cogmind - Beta 16 @@@ ROGUE MODE // 2025.12.28 @ 19:44:02 Player: lvl5hm Result: Self-destructed Performance ------------- Evolutions (9) 4500 Regions Visited (10) 2000 Robots Destroyed (173) 865 Value Destroyed (6618) 6618 Prototype IDs (22) 440 Alien Tech Used (0) 0 Bonus (809) 809 TOTAL SCORE: 15232 Bonus ------- High Alert Combat Kills 809 Cogmind --------- Core Integrity 1378/1600 Matter 257/300 Energy 16/100 System Corruption 11% Temperature Cool (0) Movement Immobile (Siege) Location -1/Access Parts ------- > --- POWER (3) -------- (None) > --- PROPULSION (6) --- Centrium Heavy Treads Centrium Heavy Treads Centrium Heavy Treads > --- UTILITY (13) ----- Advanced Coolant Injector Huge Storage Unit Experimental Signal Interpreter Experimental Terrain Scan Processor Experimental Core Analyzer Centrium Heavy Armor Plating Graphene Brace (fused) Improved Focal Shield Advanced Hacking Suite Advanced Hacking Suite Long-range Tractor Beam > --- WEAPON (3) ------- Hypervelocity Mass Driver Enhanced Hardcell Cannon > --- INVENTORY (25) --- Advanced Heat Sink Medium Storage Unit Long-range Sensor Array Long-range Terrain Scanner Seismic Detector Experimental EM Shield Improved Force Field Advanced Force Field Advanced Point Defense System Authchip [Propulsion] Improved System Restoration Module Improved System Restoration Module HERF Cannon Matter Neutralizer Nova Cannon Nova Cannon Enhanced Nova Cannon Hypervelocity Mass Driver Shock Maul Peak State ------------ > --- POWER ------------ Micro Antimatter Reactor Quantum Reactor Quantum Reactor > --- PROPULSION ------- Centrium Heavy Treads Centrium Heavy Treads Centrium Heavy Treads > --- UTILITY ---------- Advanced Heat Sink Huge Storage Unit Long-range Sensor Array Experimental Signal Interpreter Experimental Terrain Scan Processor Experimental Core Analyzer Centrium Heavy Armor Plating Graphene Brace Experimental EM Shield Improved Force Field Advanced Hacking Suite Advanced Hacking Suite > --- WEAPON ----------- Nova Cannon Enhanced Nova Cannon Gamma Bomb Array > --- INVENTORY -------- Advanced Heat Sink Advanced Heat Sink Advanced Coolant Injector Medium Storage Unit Long-range Terrain Scanner Seismic Detector Centrium Heavy Armor Plating Improved Focal Shield Advanced Point Defense System Authchip [Propulsion] Improved System Restoration Module Improved System Restoration Module Long-range Tractor Beam HERF Cannon Matter Neutralizer Nova Cannon Hypervelocity Mass Driver Hypervelocity Mass Driver Hypervelocity Mass Driver Hypervelocity Mass Driver Enhanced Hardcell Cannon Shock Maul [Rating: 212] Favorites ----------- Power Light Fission Core Engine Heavy Ion Engine Power Core Light Fission Core Reactor Quantum Reactor Propulsion Light Treads Treads Light Treads Flight Unit Improved VTOL Module Utility Advanced Hacking Suite Device Long-range Sensor Array Storage Huge Storage Unit Processor Experimental Terrain Scan Processor Hackware Advanced Hacking Suite Protection Light Armor Plating Weapon Enhanced Autogun Energy Gun Particle Gun Energy Cannon Matter Neutralizer Ballistic Gun Enhanced Autogun Ballistic Cannon Hypervelocity Mass Driver Launcher Gamma Bomb Array Impact Weapon Shock Maul Slashing Weapon Scythe Special Melee Weapon Datajack Build | -11 -10 -9 -8 -7 -6 -5 -4 -3 -2 -1 ------- Run | Yrd Mat Mat Mat Fac Fac Fac Fac Res Res Acc Slots Evolved 18 | . . 2 2 2 2 2 2 2 2 2 Power 2 | . . . . . . . . 1 . 1 Propulsion 4 | . . 2 . . 1 1 . . . . Utility 11 | . . . 2 2 1 1 2 1 1 1 Weapon 1 | . . . . . . . . . 1 . Parts Attached 148 | 7 11 11 29 17 9 10 7 4 28 15 Power 14 | 1 1 4 . 1 1 1 . 1 2 2 Engine 7 | 1 1 4 . 1 . . . . . . Core 3 | . . . . . 1 1 . 1 . . Reactor 4 | . . . . . . . . . 2 2 Propulsion 39 | 2 1 6 11 7 1 2 3 1 5 . Treads 22 | 2 1 5 10 . . . . . 4 . Leg . | . . . . . . . . . . . Wheel . | . . . . . . . . . . . Hover . | . . . . . . . . . . . Flight 17 | . . 1 1 7 1 2 3 1 1 . Utility 65 | 2 6 . 8 6 6 7 4 2 17 7 Device 22 | 1 3 . 1 3 . 1 2 . 6 5 Storage 5 | 1 3 . . . . . . . 1 . Processor 6 | . . . 1 1 . 1 . 1 2 . Hackware 24 | . . . 2 1 6 5 2 . 7 1 Protection 8 | . . . 4 1 . . . 1 1 1 Artifact . | . . . . . . . . . . . Weapon 30 | 2 3 1 10 3 1 . . . 4 6 Energy Gun 5 | 1 2 . 2 . . . . . . . Energy Cannon 5 | . 1 1 . . . . . . 1 2 Ballistic Gun 7 | 1 . . 5 . . . . . . 1 Ballistic Cannon 5 | . . . . . . . . . 3 2 Launcher 4 | . . . 3 . . . . . . 1 Special Weapon . | . . . . . . . . . . . Impact Weapon 2 | . . . . 1 1 . . . . . Slashing Weapon 1 | . . . . 1 . . . . . . Piercing Weapon . | . . . . . . . . . . . Special Melee Weapon 1 | . . . . 1 . . . . . . Unidentified Prototypes 17 | . . 2 4 1 1 1 2 . 5 1 Parts Lost 16 | . . 2 1 . . . . . 3 10 Power 7 | . . 1 . . . . . . 2 4 Propulsion . | . . . . . . . . . . . Utility 5 | . . . 1 . . . . . 1 3 Weapon 4 | . . 1 . . . . . . . 3 Highest Loss Streak 7 | . . 1 1 . . . . . 3 7 To Critical Strikes . | . . . . . . . . . . . Average Backups 15 | . 11 21 24 7 9 9 9 9 10 21 Power . | . . 1 . . . 1 1 . . . Propulsion 2 | . 2 4 5 1 . . 1 . 1 1 Utility 7 | . 4 8 10 5 7 7 6 7 6 10 Weapon 4 | . 3 7 7 1 1 1 1 1 2 8 Tool/Special . | . . . . . . . . . . . Unused Backups 36 | 1 . 2 11 5 2 2 1 . 2 10 Power 1 | . . . 1 . . . . . . . Propulsion 3 | . . . 1 1 . . 1 . . . Utility 19 | 1 . . 1 4 2 2 . . 1 8 Weapon 13 | . . 2 8 . . . . . 1 2 Tool/Special . | . . . . . . . . . . . Average Slot Usage (%) 94 | . 99 98 99 97 97 99 93 89 79 80 Engine 6 | . 14 10 9 7 1 . . . . . Core 1 | . . . . . 4 5 5 9 3 . Reactor 1 | . . . . . . . . . 4 9 Treads 20 | . 28 42 36 . . . . . 5 12 Flight 9 | . . . . 28 33 35 30 23 11 . Device 10 | . 14 11 8 7 5 4 9 14 13 17 Storage 7 | . 14 11 9 3 6 5 5 4 4 4 Processor 4 | . . . 1 5 6 5 5 8 9 12 Hackware 9 | . . . 1 22 25 28 25 19 12 9 Protection 6 | . . . 16 3 . . 5 4 5 4 Energy Gun 6 | . 21 19 2 . . . . . . . Energy Cannon 1 | . 3 2 . . . . . . 1 4 Ballistic Gun 4 | . 2 . 14 . . . . . . . Impact Weapon 1 | . . . . 2 3 5 5 4 3 . Peak Build Rating 212 | 7 12 19 34 42 60 86 104 121 190 212 Average Rating 62 | 6 9 16 28 37 52 76 93 118 149 200 On Entrance 60 | . 7 11 19 28 42 60 86 104 121 187 Avg Prop Armor Cover (%) 3 | . . . . 5 2 . . . 3 7 Naked Turns . | . . . . . . . . . . . Heaviest Build 205 | 12 92 96 111 23 24 28 31 41 189 205 Greatest Support 245 | 40 40 80 83 20 25 36 40 49 245 240 Greatest Overweight (x) 2 | . 2 1 1 1 1 1 . . 1 1 Average Overweight (x) . | . . 1 1 . . . . . . . Largest Inventory Capacity 25 | 8 25 25 25 25 10 10 10 10 25 25 Average Capacity 18 | 7 18 25 25 7 10 10 10 10 17 25 Most Carried 25 | 2 17 25 25 25 10 10 10 10 23 25 Average Carried 16 | . 11 21 24 7 9 9 9 9 11 23 Final Capacity 25 | 8 25 25 25 10 10 10 10 10 25 25 Final Carried 25 | 1 17 25 25 10 10 10 10 10 23 19 Class Distribution -------------------- 39% | Scavenger-Mutant 16% | Mutant 13% | Hacker-Sprinter 7% | Hacker-Ninja 5% | Machinist-Tank 3% | Machinist-Mutant 3% | Wizard-Sprinter 3% | Machinist-Skirmisher Dominant Class ---------------- Mutant | -10/Materials Scavenger-Mutant | -9/Materials Scavenger-Mutant | -8/Materials Hacker-Sprinter | -7/Factory Hacker-Sprinter | -6/Factory Wizard-Sprinter | -5/Factory Wizard-Scout | -4/Factory Hacker-Ninja | -3/Research Hacker-Ninja | -2/Research Machinist-Tank | -1/Access Resources | -11 -10 -9 -8 -7 -6 -5 -4 -3 -2 -1 ----------- Run | Yrd Mat Mat Mat Fac Fac Fac Fac Res Res Acc Matter Collected 4113 | 291 174 142 1156 209 91 290 150 50 637 923 Remotely 592 | . . . . . . . . . . 592 Salvage Created 8017 | 190 336 723 1679 209 91 194 166 119 1225 3085 Parts 410 | 17 21 40 109 6 . 5 2 . 60 150 Haulers Intercepted 11 | . 2 3 5 . . . . . 1 . Recyclers Shooed 3 | . . . 1 . . . . . 1 1 Parts Field Recycled . | . . . . . . . . . . . Retrieved Matter . | . . . . . . . . . . . Parts Self-Destructed . | . . . . . . . . . . . Prevented . | . . . . . . . . . . . Parts Restored . | . . . . . . . . . . . Kills | -11 -10 -9 -8 -7 -6 -5 -4 -3 -2 -1 ------- Run | Yrd Mat Mat Mat Fac Fac Fac Fac Res Res Acc Combat Hostiles Destroyed 93 | . 7 12 28 . . . . . 14 32 Melee 2 | . . . . . . . . . 2 . Guns 35 | . 5 12 18 . . . . . . . Cannons 29 | . 2 . . . . . . . 11 16 AOE 12 | . . . 8 . . . . . . 4 Classes Destroyed 14 | 2 4 3 2 . . . . 1 1 1 Worker 10 | . . . 2 . . . . . . 8 Builder 11 | . . . . . . . . 1 3 7 Tunneler 6 | 6 . . . . . . . . . . Hauler 11 | . 2 3 5 . . . . . 1 . Recycler 11 | 1 . 3 2 2 . 1 . . 1 1 Operator 6 | . . 1 3 1 1 . . . . . Watcher 25 | . 1 . 4 1 3 3 5 3 4 1 Swarmer 14 | . 3 3 8 . . . . . . . Grunt 36 | . 4 5 13 . . . . . . 14 Duelist 1 | . . 1 . . . . . . . . Protector 1 | . . . . . . . . . . 1 Sentry 8 | . . 3 5 . . . . . . . Hunter 9 | . . . 2 . . . . . 2 5 Programmer 24 | . . . . . . . . . 12 12 Best Kill Streak 16 | 2 4 5 8 1 1 1 2 1 5 16 Combat Bots Only 7 | . 3 4 7 . . . . . 5 7 Max Kills in Single Turn 5 | 1 1 1 2 1 1 1 1 1 2 5 Gunslinging 1 | . . . 1 . . . . . . . Exploded 2 | . . . 2 . . . . . . 2 Melee 1 | . . . . . . . . . 1 . Uniques/NPCs Destroyed . | . . . . . . . . . . . Combat | -11 -10 -9 -8 -7 -6 -5 -4 -3 -2 -1 -------- Run | Yrd Mat Mat Mat Fac Fac Fac Fac Res Res Acc Hostile Shots Fired 885 | . 24 67 128 9 10 2 5 . 248 392 Missed 242 | . 11 17 37 9 8 1 5 . 57 97 Hits 643 | . 13 50 91 . 2 1 . . 191 295 Melee 4 | . . . . . . . . . . 4 Projectile 639 | . 13 50 91 . 2 1 . . 191 291 AOE 2 | . . 2 . . . . . . . . Critical Strikes 32 | . . 1 6 . . . . . 13 12 Actively Blocked 24 | . . . . . . . . . 12 12 Part Disruptions 6 | . . . . . . . . . 2 4 Damage Taken 9098 | . 141 694 1288 . 21 19 . . 1699 5236 Core 654 | . 24 75 154 . 11 19 . . 149 222 Absorbed by Shields 328 | . . . . . . . . . 69 259 Reduced by Siege Mode 225 | . . . . . . . . . 23 202 Ignored by Resistances 4349 | . . . 92 . . . . . 3122 1135 Regen/Repaired (Parts) 23 | . . . . 23 . . . . . . Core Remaining (%) 92 | 100 90 81 72 100 98 98 100 100 89 . Volleys Fired 312 | 21 24 47 102 . . . . . 52 66 Largest 3 | 2 2 2 2 . . . . . 3 3 Hottest 289 | 70 130 133 110 . . . . . 168 289 Shots Fired 585 | 42 48 94 201 . . . . . 71 129 Gun 371 | 42 44 91 194 . . . . . . . Cannon 189 | . 4 3 . . . . . . 71 111 Launcher 25 | . . . 7 . . . . . . 18 Special . | . . . . . . . . . . . Kinetic 286 | 21 14 . 166 . . . . . 27 58 Thermal 246 | 21 34 94 . . . . . . 44 53 Explosive 7 | . . . 7 . . . . . . . Electromagnetic 46 | . . . 28 . . . . . . 18 Robot Hit Streak 19 | 8 16 14 14 . . . . . 17 19 Robot Miss Streak 5 | 4 2 3 3 . . . . . 3 5 Penetration Max 2 | . . . . . . . . . 1 2 Secondary Targets 4 | . . 1 3 . . . . . . . Max Gunslinging Chain 1 | . . 1 1 . . . . . . . Shots Hit Robots 408 | 27 35 64 131 9 7 5 5 5 52 68 Core Hits 274 | 11 15 27 71 3 1 3 1 1 21 120 Critical Kills 20 | . . . 1 . . 1 . . 8 10 Critical Parts Destroyed 25 | . . . . . 2 . . 1 9 13 Critical Strikes 50 | 2 1 1 1 . 2 1 . 1 17 24 Burn 4 | 2 1 1 . . . . . . . . Meltdown 1 | . . . . . . . . . 1 . Destroy 35 | . . . 1 . . . . . 11 23 Blast 1 | . . . . . . . . . . 1 Smash 9 | . . . . . 2 1 . 1 5 . Melee Attacks 196 | . . . . 42 25 33 25 21 50 . Impact 135 | . . . . 14 10 15 25 21 50 . Slashing 55 | . . . . 23 14 18 . . . . Piercing . | . . . . . . . . . . . Sneak Attacks 15 | . . . . 6 2 1 1 1 4 . Combat Hostiles . | . . . . . . . . . . . Follow-up Attacks 2 | . . . . . 1 1 . . . . Damage Inflicted 15765 | 291 447 986 3370 351 389 365 417 392 2834 5923 Guns 3933 | 291 371 942 2329 . . . . . . . Cannons 4036 | . 70 40 . . . . . . 1440 2486 Explosions 4471 | . . . 1034 . . . . . . 3437 Melee 3064 | . . . . 351 389 365 417 392 1150 . Ramming 261 | . 6 4 7 . . . . . 244 . Kinetic 3297 | 104 67 . 1860 . . . . . 281 985 Thermal 4448 | 187 374 982 193 . . . . . 1159 1553 Explosive 1129 | . . . 841 . . . . . . 288 Electromagnetic 3566 | . . . 469 . . . . . . 3097 Impact 2620 | . . . . 54 273 334 417 392 1150 . Slashing 444 | . . . . 297 116 31 . . . . Piercing . | . . . . . . . . . . . Highest Corruption 18 | . 4 . . . . . . . 18 11 Average Corruption 7 | . 3 . . . . . . . 9 8 Corruption Purged . | . . . . . . . . . . . Corruption Blocked . | . . . . . . . . . . . Effects 75 | . 18 . . . . . . . 39 18 Message Errors 18 | . 6 . . . . . . . 8 4 Matter Fused 22 | . 7 . . . . . . . 10 5 Heat Flow Errors 7 | . 1 . . . . . . . 3 3 Energy Discharges 4 | . . . . . . . . . 3 1 Parts Rejected 2 | . . . . . . . . . 1 1 Parts Fused 1 | . . . . . . . . . 1 . Data Loss (minor) 9 | . 3 . . . . . . . 5 1 Data Loss (major) 6 | . 1 . . . . . . . 5 . Misfires 2 | . . . . . . . . . 1 1 Misdirections 2 | . . . . . . . . . 2 . Weapon Failures 2 | . . . . . . . . . . 2 Overload Shots . | . . . . . . . . . . . Overflow Damage 1694 | . . . . 76 242 78 93 224 752 229 Projectiles 381 | . . . . . . . . . 155 226 Explosions 3 | . . . . . . . . . . 3 Melee 1310 | . . . . 76 242 78 93 224 597 . Knockbacks 25 | . . . . . 1 . 1 1 13 9 Impact 10 | . . . . . 1 . 1 1 7 . Kinetic 13 | . . . . . . . . . 4 9 Secondary 2 | . . . . . . . . . 2 . Self-Inflicted Damage 230 | . . . 98 . . . . . . 132 Shots 17 | . . . 3 . . . . . . 14 Rammed 20 | . 2 . 1 . . . . . 17 . Targets Rammed 23 | . 2 1 1 . . . . . 19 . Kicked . | . . . . . . . . . . . Crushed 3 | . . 1 . . . . . . 2 . Highest Temperature 446 | 90 213 207 225 1 17 121 68 5 446 388 Average Temperature 64 | 31 69 63 63 1 3 22 20 5 117 113 Received Heat Transfer 1449 | . 54 210 603 . 12 9 . . 9 552 Effects 11 | . . . . . . . . . 7 4 Shutdowns 3 | . . . . . . . . . 1 2 Energy Bleed 4 | . . . . . . . . . 2 2 Interference 3 | . . . . . . . . . 3 . Short Circuit 1 | . . . . . . . . . 1 . Siege Activations 5 | . . . . . . . . . 3 2 Total Turns 96 | . . . . . . . . . 28 68 Longest Duration 52 | . . . . . . . . . 14 52 Martial Activations . | . . . . . . . . . . . Shielding Activations . | . . . . . . . . . . . Robots Disrupted 1 | . . . 1 . . . . . . . Combat Hostiles 1 | . . . 1 . . . . . . . Robots Corrupted 25 | . . . 2 . 1 1 4 2 3 12 Combat Hostiles 14 | . . . 2 . . . . . . 12 Parts Fried 54 | . . . 1 . 1 2 4 7 4 35 Impact Corruptions 40 | . . . . . 6 4 4 7 19 . Robots Melted 1 | . . . . . . . . . 1 . Combat Hostiles 1 | . . . . . . . . . 1 . Parts Melted 8 | 1 . 3 . . . . . . 3 1 Heat Transferred 6553 | 703 1036 2442 200 . . . . . 962 1210 Parts Sabotaged . | . . . . . . . . . . . Parts Stolen . | . . . . . . . . . . . Parts Stripped . | . . . . . . . . . . . Power Chain Reactions 4 | . . . 2 . . . . . . 2 Alert | -11 -10 -9 -8 -7 -6 -5 -4 -3 -2 -1 ------- Run | Yrd Mat Mat Mat Fac Fac Fac Fac Res Res Acc Maximum Alert Level 3 | . . . 1 . . . . . 1 3 Low Security (%) 90 | 100 100 100 80 100 100 100 100 100 89 59 Level 1 6 | . . . 19 . . . . . 10 3 Level 2 . | . . . . . . . . . . 13 Level 3 1 | . . . . . . . . . . 23 Level 4 . | . . . . . . . . . . . Level 5 . | . . . . . . . . . . . High Security . | . . . . . . . . . . . Max Security . | . . . . . . . . . . . Peak Influence 1078 | 10 70 114 351 155 29 23 41 32 325 1078 Initial 194 | . . . 18 147 4 . 11 9 10 194 Average 87 | 1 8 34 149 69 4 6 6 7 83 343 Influence Increases 4342 | 35 199 365 918 187 142 163 115 130 758 1330 Destroy 0b10 Robot/C 1840 | . 140 240 560 . . . . . 280 620 Destroy 0b10 Robot/NC 405 | 35 15 35 80 20 20 20 25 20 45 90 Destroy Leader 472 | . 36 66 148 2 6 6 10 6 70 122 Successful Hack 320 | . 7 22 11 21 43 37 31 61 69 18 Disable Machine 180 | . . . 60 30 15 . 15 15 15 30 Anti-Garrison Action 150 | . . . . . . . . . . 150 Destroy Structure 420 | . 1 2 44 24 13 40 34 28 129 105 Partial Spotted 135 | . . . . 30 30 30 . . 45 . Lose Combat Pursuer 420 | . . . 15 60 15 30 . . 105 195 Influence Decreases 3280 | 35 199 319 640 500 151 142 119 130 452 593 Entered New Map 376 | . . . 28 177 7 2 12 10 9 131 Time Decay 2766 | 35 199 309 602 323 126 140 107 120 443 362 Lost Part 120 | . . 10 10 . . . . . . 100 Lost Ally 18 | . . . . . 18 . . . . . Squads Dispatched 42 | . 1 1 2 5 5 3 4 5 9 7 Investigation 21 | . . 1 1 4 4 2 3 2 3 1 Extermination 13 | . . . . 1 1 1 1 2 6 1 Reinforcement 6 | . 1 . 1 . . . . 1 . 3 Assault 2 | . . . . . . . . . . 2 Garrison . | . . . . . . . . . . . Intercept . | . . . . . . . . . . . Searches Triggered . | . . . . . . . . . . . Construction Impeded 2 | . . . . . . . . . . 2 Haulers Reinforced 1 | . . . . . . . . . . 1 Active Scanning Responses . | . . . . . . . . . . . Cargo Convoy Interrupts . | . . . . . . . . . . . Stealth | -11 -10 -9 -8 -7 -6 -5 -4 -3 -2 -1 --------- Run | Yrd Mat Mat Mat Fac Fac Fac Fac Res Res Acc Distress Signals 8 | . . . 3 1 . . 1 . 2 1 Communications Jammed . | . . . . . . . . . . . Distress Signals . | . . . . . . . . . . . Times Spotted 219 | . 12 18 38 8 11 13 21 5 38 55 Peak Tracking Total 9 | . 3 5 7 4 7 7 6 2 6 9 Tactical Retreats 30 | . 1 . 1 4 3 3 2 . 11 5 ECM-based Alert Blocks 35 | . . . . 3 5 6 10 . 11 . Traps | -11 -10 -9 -8 -7 -6 -5 -4 -3 -2 -1 ------- Run | Yrd Mat Mat Mat Fac Fac Fac Fac Res Res Acc Traps Triggered 9 | . 2 . 1 . 1 1 . 3 1 . Indirectly . | . . . . . . . . . . . Trap Hack Attempts . | . . . . . . . . . . . Triggered . | . . . . . . . . . . . Disarmed . | . . . . . . . . . . . Reprogrammed . | . . . . . . . . . . . Reused . | . . . . . . . . . . . Traps Extracted . | . . . . . . . . . . . Installed . | . . . . . . . . . . . Triggered . | . . . . . . . . . . . Machines | -11 -10 -9 -8 -7 -6 -5 -4 -3 -2 -1 ---------- Run | Yrd Mat Mat Mat Fac Fac Fac Fac Res Res Acc Machines Disabled 13 | . . . 4 2 1 . 1 1 1 3 Max in Single Turn 1 | . . . 1 1 1 . 1 1 1 1 Garrison Access 9 | . . . . 1 1 2 2 . 1 2 Machines Repaired . | . . . . . . . . . . . Machines Dismantled . | . . . . . . . . . . . Machines Sabotaged . | . . . . . . . . . . . Overloaded Fab Kills . | . . . . . . . . . . . Hacking | -11 -10 -9 -8 -7 -6 -5 -4 -3 -2 -1 --------- Run | Yrd Mat Mat Mat Fac Fac Fac Fac Res Res Acc Machines Accessed 85 | . 3 6 6 11 12 10 11 11 11 4 Terminals 51 | . 3 5 5 4 8 4 6 9 6 1 Fabricators 17 | . . . . 4 3 3 3 1 3 . Repair Stations 1 | . . . . 1 . . . . . . Recycling Units . | . . . . . . . . . . . Scanalyzers 7 | . . 1 1 1 . 1 . 1 1 1 Garrison Access 9 | . . . . 1 1 2 2 . 1 2 Total Hacks 192 | . 6 12 12 21 29 25 23 21 34 9 Successful 133 | . 2 3 5 16 26 18 21 11 28 3 Failed 58 | . 4 9 7 5 3 7 2 10 6 5 Catastrophic 10 | . 1 3 2 . . 1 . 2 1 . Database Lockouts 1 | . . . . . . . . . . 1 Manual 96 | . 6 9 7 6 15 11 15 12 13 2 Terminals 99 | . 6 11 10 6 15 9 12 17 11 2 Fabricators 63 | . . . . 8 13 10 9 2 21 . Repair Stations 2 | . . . . 2 . . . . . . Recycling Units . | . . . . . . . . . . . Scanalyzers 12 | . . 1 2 2 . 1 . 2 1 3 Garrison Access 16 | . . . . 3 1 5 2 . 1 4 Terminal Hacks 37 | . 2 2 2 3 6 4 6 7 5 . Part Schematic 12 | . 2 . . . 1 2 3 3 1 . Level Access Points 5 | . . . . . 1 1 1 1 1 . Branch Access Points 2 | . . 1 1 . . . . . . . Machine Index 1 | . . . . . . . 1 . . . Terminal Index 4 | . . . . 1 1 1 . 1 . . Fabricator Index 3 | . . . . 1 1 . . 1 . . Locate Traps 1 | . . . . . . . . 1 . . Recall Investigation 1 | . . . . . 1 . . . . . Recall Extermination 5 | . . . . 1 1 . 1 . 2 . Hauler Manifests 2 | . . 1 1 . . . . . . . Registered Components 1 | . . . . . . . . . 1 . Fabricator Hacks 44 | . . . . 4 10 7 5 1 17 . Network Status 2 | . . . . . . 1 . . 1 . Load Schematic 28 | . . . . 4 6 4 4 1 9 . Build 14 | . . . . . 4 2 1 . 7 . Repair Station Hacks 2 | . . . . 2 . . . . . . Scan Component 1 | . . . . 1 . . . . . . Repair 1 | . . . . 1 . . . . . . Recycling Unit Hacks . | . . . . . . . . . . . Scanalyzer 10 | . . . 2 2 . 1 . 2 1 2 Insert Component 1 | . . . . 1 . . . . . . Analyze 1 | . . . . 1 . . . . . . Retrieve Study 8 | . . . 2 . . 1 . 2 1 2 Garrison Access Hacks 8 | . . . . 1 1 2 2 . 1 1 Seal Access 8 | . . . . 1 1 2 2 . 1 1 Unauthorized Hacks 32 | . . 1 1 4 9 4 8 1 4 . Terminals 13 | . . 1 1 . 6 1 4 . . . Assimilate 5 | . . . . . 4 . 1 . . . Botnet 5 | . . . . . 2 1 2 . . . Operators 3 | . . 1 1 . . . 1 . . . Fabricators 19 | . . . . 4 3 3 4 1 4 . Prioritize 5 | . . . . . 1 1 1 . 2 . Recompile 14 | . . . . 4 2 2 3 1 2 . Repair Stations . | . . . . . . . . . . . Recycling Units . | . . . . . . . . . . . Scanalyzers . | . . . . . . . . . . . Garrison Access . | . . . . . . . . . . . Data Cores Recovered 4 | . . 1 2 . 1 . . . . . Used . | . . . . . . . . . . . Hacking Detections 52 | . 2 6 4 8 5 3 4 9 9 2 Full Trace Events 6 | . . 1 . . 2 . . 1 1 1 Feedback Events 1 | . . . . . . . . . . 1 Corruption 1 | . . . . . . . . . . 1 Feedback Blocked . | . . . . . . . . . . . Robot Schematics Acquired . | . . . . . . . . . . . Robots Built . | . . . . . . . . . . . Authchips . | . . . . . . . . . . . Time . | . . . . . . . . . . . Total Robot Build Rating . | . . . . . . . . . . . Part Schematics Acquired 12 | . 2 . . 1 1 2 3 2 1 . Parts Built 16 | . . . . . 4 4 1 . 7 . Authchips 13 | . . . . . 3 2 1 . 7 . Time 787 | . . . . . 111 58 93 . 525 . Total Part Build Rating 113 | . . . . . 22 28 7 . 56 . Part Studies Acquired 8 | . . . 2 . . 1 . 2 1 2 Parts Repaired 1 | . . . . 1 . . . . . . Time 60 | . . . . 60 . . . . . . Parts Recycled . | . . . . . . . . . . . Recycled Matter . | . . . . . . . . . . . Retrieved Matter . | . . . . . . . . . . . Retrieved Components . | . . . . . . . . . . . Parts Scanalyzed 1 | . . . . 1 . . . . . . Part Schematics Acquired 1 | . . . . 1 . . . . . . Parts Damaged 1 | . . . . 1 . . . . . . Bothacking | -11 -10 -9 -8 -7 -6 -5 -4 -3 -2 -1 ------------ Run | Yrd Mat Mat Mat Fac Fac Fac Fac Res Res Acc Used RIF Installer . | . . . . . . . . . . . Robots Hacked 3 | . . . . 2 1 . . . . . Non-combat 3 | . . . . 2 1 . . . . . Combat . | . . . . . . . . . . . Robot Hacks Applied 3 | . . . . 2 1 . . . . . find_chute 3 | . . . . 2 1 . . . . . Relay Couplers Released 1 | . . . . . . . . . . 1 Machine Destruction 1 | . . . . . . . . . . 1 Fabnet Peak Effective % . | . . . . . . . . . . . Robots Rewired 1 | . . . . 1 . . . . . . Allies Hacked . | . . . . . . . . . . . Hacks Repelled . | . . . . . . . . . . . Allies | -11 -10 -9 -8 -7 -6 -5 -4 -3 -2 -1 -------- Run | Yrd Mat Mat Mat Fac Fac Fac Fac Res Res Acc Total Allies 4 | . . . . 1 2 . 1 . . . Largest Group 2 | . . . . 1 2 . 1 . . . Highest-Rated Group 36 | . . . . 12 36 . 10 . . . Highest-Rated Ally 26 | . . . . 12 26 . 10 . . . Total Orders 1 | . . . . 1 . . . . . . STAY 1 | . . . . 1 . . . . . . Ally Attacks 1 | . . . . 1 . . . . . . Total Damage . | . . . . . . . . . . . Kills . | . . . . . . . . . . . Allies Corrupted . | . . . . . . . . . . . Allies Melted . | . . . . . . . . . . . Intel | -11 -10 -9 -8 -7 -6 -5 -4 -3 -2 -1 ------- Run | Yrd Mat Mat Mat Fac Fac Fac Fac Res Res Acc Active Infowar (turns) 6573 | 220 1503 105 464 803 458 482 536 402 1028 572 Sensors 4176 | . . . . 771 407 462 536 402 1028 570 Terrain 1774 | . . . . . . . 3 400 896 475 Seismic 1942 | 220 1503 105 63 . . . . . 51 . T.N.C. 401 | . . . 401 . . . . . . . ECM 633 | . . . . 32 92 20 32 . 457 . Robot Analysis Total . | . . . . . . . . . . . Derelict Logs Recovered . | . . . . . . . . . . . Drone Launches . | . . . . . . . . . . . Drone Recoveries . | . . . . . . . . . . . Exploration | -11 -10 -9 -8 -7 -6 -5 -4 -3 -2 -1 ------------- Run | Yrd Mat Mat Mat Fac Fac Fac Fac Res Res Acc Turns Passed 11288 | 315 1548 1355 2999 825 537 490 536 402 1459 822 Spaces Moved 11658 | 148 657 474 1095 1405 1242 1462 1598 1110 2123 344 Core 4 | 4 . . . . . . . . . . Treads 2971 | 144 657 474 1095 . . . . . 257 344 Legs . | . . . . . . . . . . . Wheels . | . . . . . . . . . . . Hover . | . . . . . . . . . . . Flight 8683 | . . . . 1405 1242 1462 1598 1110 1866 . Fastest Speed 14 | 50 160 240 240 26 23 14 20 26 18 160 Average Speed 73 | 157 218 240 240 30 24 20 21 26 41 160 Slowest Speed 320 | 160 320 240 240 109 99 96 26 27 240 240 Overloaded Moves 285 | . . . . . . 4 . . 281 . Propulsion Burnouts . | . . . . . . . . . . . Robots Hopped 45 | . . . . 2 9 3 19 6 6 . Potential Cave-ins . | . . . . . . . . . . . Cave-ins Triggered 1 | . . . . . . . . . 1 . Exploration Rate (%) 36 | 10 94 48 69 28 27 29 32 28 29 11 Regions Visited 10 Branch Regions . Pre-discovered Areas . | . . . . . . . . . . . Known Exits Taken 6 | . . . . 1 1 1 1 1 1 . Unknown Exits Taken 4 | 1 1 1 1 . . . . . . . Scrap Searched . | . . . . . . . . . . . Spaces Dug 156 | . . . 23 24 13 20 17 14 35 10 Terrain Destroyed 214 | . . . 44 24 13 20 17 14 42 40 Melee 115 | . . . . 24 13 20 17 14 27 . Projectile 36 | . . . . . . . . . 15 21 AOE 62 | . . . 44 . . . . . . 18 Terrain Rammed . | . . . . . . . . . . . Walls Destroyed . | . . . . . . . . . . . Machines Disabled . | . . . . . . . . . . . Actions | -11 -10 -9 -8 -7 -6 -5 -4 -3 -2 -1 --------- Run | Yrd Mat Mat Mat Fac Fac Fac Fac Res Res Acc Total 13517 | 190 722 596 1337 1729 1430 1603 1727 1165 2522 496 Wait 874 | 12 8 41 37 230 131 85 94 8 196 32 Move 11559 | 147 656 473 1094 1400 1224 1455 1559 1097 2110 344 Hop 44 | . . . . 2 8 3 19 6 6 . Pick Up 116 | 2 13 11 21 12 9 7 7 1 21 12 Fast Attach 59 | 7 2 3 10 8 1 4 3 1 17 3 Attach 51 | . . 3 2 5 5 4 5 2 16 9 Detach 28 | . 2 1 3 4 . . 2 1 13 2 Swap 117 | . 10 8 30 11 10 13 6 1 7 21 Drop 106 | 1 5 8 37 15 5 6 7 1 14 7 Fire 312 | 21 24 47 102 . . . . . 52 66 Melee 186 | . . . . 42 22 26 25 21 50 . Ram 1 | . . . . . . . . . 1 . Kick . | . . . . . . . . . . . Crush 23 | . 2 1 1 . . . . . 19 . Escape Stasis 41 | . . . . . 15 . . 26 . . Rewire . | . . . . . . . . . . . Trap . | . . . . . . . . . . . Miscellaneous . | . . . . . . . . . . . Route ------- -11/Scrapyard -10/Materials (discovered 5 exits: *Mat x3 / [*Min] / [*Sub]) -9/Materials (discovered 3 exits: *Mat x2 / Min) -8/Materials (discovered 2 exits: *Fac x2) -7/Factory (discovered 3 exits: *Fac / *Sto / [*Low]) -6/Factory (discovered 4 exits: *Fac x4) -5/Factory (discovered 4 exits: *Fac x4) -4/Factory (discovered 6 exits: *Res x4 / *Upp x2) -3/Research (discovered 4 exits: *Res x3 / *Tes) -2/Research (discovered 3 exits: *Acc x3) -1/Access History --------- Turn | Location | Event 5 | -11/Scrapyard | Discovered new exit (range 16) 316 | -11/Scrapyard | Entered Materials 335 | -10/Materials | Build established: Mutant 462 | -10/Materials | Discovered new exit (range 8) 526 | -10/Materials | Discovered new exit (range 15) 799 | -10/Materials | Discovered new exit (range 16) 816 | -10/Materials | Derelicts attacked the area 1206 | -10/Materials | Discovered new exit (range 8) 1794 | -10/Materials | Discovered new exit (range 15) 1864 | -10/Materials | Entered another Materials area 1864 | -9/Materials | Evolved 2 slots: Propulsion x2 2243 | -9/Materials | Build established: Scavenger-Mutant 2435 | -9/Materials | Discovered new exit (range 13) 2574 | -9/Materials | Identified exit to Mines 3054 | -9/Materials | Discovered new exit (range 15) 3219 | -9/Materials | Entered another Materials area 3219 | -8/Materials | Evolved 2 slots: Utility x2 4943 | -8/Materials | Discovered new exit (range 12) 5493 | -8/Materials | Discovered new exit (range 16) 5808 | -8/Materials | Destroyed 7 combat bots 6218 | -8/Materials | Entered Factory 6218 | -7/Factory | Evolved 2 slots: Utility x2 6362 | -7/Factory | Discovered new exit (range 4) 6433 | -7/Factory | Repaired Imp. VTOL Module? 6469 | -7/Factory | Discovered new exit (range 10) 6472 | -7/Factory | Identified exit to Factory 6635 | -7/Factory | Discovered new exit (range 8) 6743 | -7/Factory | Build established: Hacker-Sprinter 7018 | -7/Factory | Identified exit to Storage 7043 | -7/Factory | Entered another Factory area 7043 | -6/Factory | Evolved 2 slots: Propulsion x1, Utility x1 7254 | -6/Factory | Identified exit to Factory 7471 | -6/Factory | Fabricated Adv. Hacking Suite (x1) 7497 | -6/Factory | Fabricated Adv. Hacking Suite (x1) 7523 | -6/Factory | Fabricated Adv. Hacking Suite (x1) 7561 | -6/Factory | Fabricated Cld. VTOL Module? 7580 | -6/Factory | Entered another Factory area 7580 | -5/Factory | Evolved 2 slots: Propulsion x1, Utility x1 7790 | -5/Factory | Fabricated Lrn. Sensor Array (x2) 7826 | -5/Factory | Fabricated Lrn. Terrain Scanner (x2) 7975 | -5/Factory | Identified exit to Factory 8070 | -5/Factory | Entered another Factory area 8070 | -4/Factory | Evolved 2 slots: Utility x2 8156 | -4/Factory | Discovered new exit (range 9) 8239 | -4/Factory | Fabricated Exp. Terrain Scan Processor? 8413 | -4/Factory | Identified exit to Upper Caves 8421 | -4/Factory | Identified exit to Research 8538 | -4/Factory | Discovered exit to Upper Caves (range 15) 8606 | -4/Factory | Entered Research 8606 | -3/Research | Evolved 2 slots: Power x1, Utility x1 8620 | -3/Research | Discovered new exit (range 11) 8623 | -3/Research | Identified exit to Testing 8881 | -3/Research | Build established: Hacker-Ninja 8977 | -3/Research | Identified exit to Research 9008 | -3/Research | Entered another Research area 9008 | -2/Research | Evolved 2 slots: Utility x1, Weapon x1 9076 | -2/Research | Fabricated Exp. Signal Interpreter (x1) 9188 | -2/Research | Discovered new exit (range 13) 9256 | -2/Research | Identified exit to Access 9425 | -2/Research | Fabricated Exp. Core Analyzer? 9478 | -2/Research | Found Gamma Bomb Array 9597 | -2/Research | Fabricated Centrium Heavy Treads? 9630 | -2/Research | Crushed by falling debris 9641 | -2/Research | Found Prototype Device 9641 | -2/Research | Identified Exp. EM Shield 9661 | -2/Research | Lost 3 parts (2p1u) 9711 | -2/Research | Fabricated Centrium Heavy Armor Plating? 9745 | -2/Research | Fabricated Centrium Heavy Treads (x1) 9852 | -2/Research | Fabricated Centrium Heavy Treads? 9909 | -2/Research | System corruption reached 10% 10186 | -2/Research | Build established: Machinist-Mutant 10250 | -2/Research | Fabricated Centrium Heavy Armor Plating (x1) 10467 | -2/Research | Entered Access 10467 | -1/Access | Evolved 2 slots: Power x1, Utility x1 10780 | -1/Access | Central database locked down 10829 | -1/Access | Build established: Machinist-Skirmisher 11076 | -1/Access | System corruption reached 10% 11124 | -1/Access | Destroyed 7 combat bots 11158 | -1/Access | Destroyed 7 combat bots 11240 | -1/Access | Build established: Machinist-Tank 11289 | -1/Access | Self-destructed Last Messages --------------- 11272_ Acquired 3 matter. 11272_ Penetrated by Slug. 11277_ H-88 Terminator destroyed. 11278_ K-01 Serf collects debris. 11279_ Penetrated by Slug. 11280_ HV Slug penetrates H-88 Terminator. 11280_ H-88 Terminator suffers critical hit (Destroy). 11280_ Destroyed Adv. Phase Shifter. 11280_ H-88 Terminator knocked back. 11280_ U-05 Engineer destroyed. 11280_ Slug penetrates Wall. 11282_ Penetrated by Slug. 11282_ K-01 Serf collects debris. 11284_ System corrupted: Component data lost. 11284_ Slug penetrates Wall. 11286_ K-01 Serf collects debris. 11289_ Penetrated by Slug. 11289_ Hyp. Mass Driver destroyed. 11289_ Penetrated by Slug. Map ----- +----------------------------------------------------+ | # # =|###[= = / | | # # % %%!### % ### | | # # !!|! ### ####+###+## | | """ # # """! !" ### #### ### ## | | S""" + # """G""" ### = #### ### ## | | # ################| == %! #### ### ## | | # ####### # %= | =#### ### ## | | ############ ####### # !% == ### ## ## | | ? ####### ###### " / = %% | | " + """ #*= [ ###### ##### | | # #### """ #[[###%############## | | ? ####### # #### " #%*##! ######## | | # ############# #### #!%# [% ###### | | ? ######?###### #### = !#==# % ###### | | ? ############# #### #%=# "T% ###### " | | ?? ##?########## #####+#######=[# ######""" | | ????############ ##### #######[[# !###### """ | | ???###??######## ##### ####### ## ####### " ? | | ?? #??########## ####### ## ####### ? ? | | ????####?########## ####### ## ###?##?? ? | | ??????##?########## ####### %## ###?#???????# | | ?????#??########### ## #?###???????? | | ??????? ######## ########/## # ? ????????? | | ???????????## ? # # =%[!g!![# #???????????? | | ?????????? ## ? + ; =[!%[*k!# + ??????????? | | ????????????? ###### @*[!!!gg# # ????????? | | ?????????????? ?? ##?#?# *=!h%gg#???????????????? | | ????????????????????#??###########???????????????? | | ?????????????????????????????????????????????????? | | ?????????????????????????????????????????????????? | | ?????????????????????????????????????????????????? | | ?????????????????????????????????????????????????? | | ?????????????????????????????????????????????????? | | ?????????????????????????????????????????????????? | | ?????????????????????????????????????????????????? | | ?????????????????????????????????????????????????? | | ?????????????????????????????????????????????????? | | ?????????????????????????????????????????????????? | | ?????????????????????????????????????????????????? | | ?????????????????????????????????????????????????? | | ?????????????????????????????????????????????????? | | ?????????????????????????????????????????????????? | | ?????????????????????????????????????????????????? | | ?????????????????????????????????????????????????? | | ?????????????????????????????????????????????????? | | ?????????????????????????????????????????????????? | | ?????????????????????????????????????????????????? | | ?????????????????????????????????????????????????? | | ?????????????????????????????????????????????????? | | ?????????????????????????????????????????????????? | +----------------------------------------------------+ Best States ------------- Heat Dissipation 90 Coolant Potential 100 Energy Generation 63 Energy Capacity 650 Matter Stores 300 Matter Capacity 300 Sight Range 16 Robot Scan Range 18 Terrain Scan Range 24 Terrain Scan Density 1010 ECM Strength 1 Additional Mass Support 9 Armor Coverage 2400 Resistance: KI 25 Resistance: EM 75 Evasion (%) 66 Core Analysis 8 Recoil Reduction 6 Offensive Hacking 56 Defensive Hacking 10 Authchip Count 6 Item Schematics ----------------- Signal Interpreter | -10/Materials | Hacked Lgt. Armor Plating | -10/Materials | Hacked Cld. VTOL Module | -7/Factory | Scanalyzed Adv. Hacking Suite | -6/Factory | Hacked Lrn. Sensor Array | -5/Factory | Hacked Lrn. Terrain Scanner | -5/Factory | Hacked Exp. Terrain Scan Processor | -4/Factory | Hacked Centrium Heavy Armor Plating | -4/Factory | Hacked Exp. Signal Interpreter | -4/Factory | Hacked Centrium Heavy Treads | -3/Research | Hacked Exp. Core Analyzer | -3/Research | Hacked Adv. Force Field | -2/Research | Hacked Robot Schematics ------------------ None Fabricated ------------ Adv. Hacking Suite | x1 | -6/Factory | Authchip Adv. Hacking Suite | x1 | -6/Factory | Authchip Adv. Hacking Suite | x1 | -6/Factory | Authchip Cld. VTOL Module | x1 | -6/Factory Lrn. Sensor Array | x2 | -5/Factory | Authchip Lrn. Terrain Scanner | x2 | -5/Factory | Authchip Exp. Terrain Scan Processor | x1 | -4/Factory | Authchip Exp. Signal Interpreter | x1 | -2/Research | Authchip Exp. Core Analyzer | x1 | -2/Research | Authchip Centrium Heavy Treads | x1 | -2/Research | Authchip Centrium Heavy Armor Plating | x1 | -2/Research | Authchip Centrium Heavy Treads | x1 | -2/Research | Authchip Centrium Heavy Treads | x1 | -2/Research | Authchip Centrium Heavy Armor Plating | x1 | -2/Research | Authchip Repaired ---------- Imp. VTOL Module | 54% | -7/Factory Studied --------- Lgt. Deuterium Engine | -8/Materials | Hacked Rocket Launcher | -8/Materials | Hacked Lgt. Fission Core | -5/Factory | Hacked Impulse Thruster Array | -3/Research | Hacked Impulse Thruster | -3/Research | Hacked Quantum Reactor | -2/Research | Hacked Enh. Nova Cannon | -1/Access | Hacked Enh. Hardcell Cannon | -1/Access | Hacked Alien Tech Used ----------------- None Achievements -------------- None Challenges ------------ None Game ------ Seed HypercooledInsulatedGun Manual? 0 Play Time 02:31:52 Cumulative 333.9 hours Start 2025.12.28 @ 16:46:47 End 2025.12.28 @ 19:44:02 Sessions 2 Manual Loads 0 Difficulty Rogue Special Mode None Game No. 229 Rogue 226 Adventurer 3 Explorer 0 Win Type - Total 16 Types 8/1/3/1/1/0/0/1/0/1 Lore% 77 Gallery% 79 Achievement% 71 Wizard Run 0 Options --------- Layout 2 ASCII 0 Keyboard 1 Movement Arrows Keybinds 0 Fullscreen 1 Font 32/SmallcapsGlow Map View 50x44 Zoom Use 0% Tactical HUD 1 Map Filters NONE Filters NONE Steam 1 RUN: 7f9821c5-3a2e-45b3-b1c6-6eb48774973a